bitfinex/quotes_SOLUSD_20250418
["timestamp","ask_amount","ask_price","bid_price","bid_amount"]
[1744962448082,7.44435345,134.33,134.32,1e-08]
[1744962449280,7.44379931,134.34,134.32,1e-08]
[1744962450162,7.44379931,134.34,134.32,9.53857846]
[1744962450363,7.44379931,134.34,134.32,1e-08]
[1744962451256,9.53857845,134.34,134.32,1e-08]
[1744962451663,35.58993683,134.35,134.32,1e-08]
[1744962451968,26.05135838,134.35,134.32,1e-08]
[1744962452281,35.58993683,134.35,134.32,1e-08]
[1744962454086,9.53857845,134.34,134.32,1e-08]
[1744962454673,7.44435345,134.33,134.32,1e-08]
[1744962459989,9.53857845,134.34,134.32,1e-08]
[1744962461086,26.05135838,134.35,134.32,1e-08]
[1744962461283,26.05135838,134.35,134.32,6.10999288]
[1744962461892,26.05135838,134.35,134.32,1e-08]
[1744962462691,32.16135125,134.35,134.32,1e-08]
[1744962467170,26.05135838,134.35,134.32,1e-08]
[1744962468099,32.16135125,134.35,134.32,1e-08]
[1744962468394,6.10999287,134.34,134.32,1e-08]
[1744962469283,7.44435345,134.33,134.32,1e-08]
[1744962470998,26.05135838,134.35,134.32,1e-08]
[1744962471197,26.05135838,134.35,134.32,6.10999288]
[1744962471406,26.05135838,134.35,134.32,1e-08]
[1744962473512,32.16135125,134.35,134.32,1e-08]
[1744962475308,6.10999287,134.34,134.32,1e-08]
[1744962476902,7.44435345,134.33,134.32,1e-08]
[1744962478902,26.05135838,134.35,134.32,6.10999288]
[1744962479110,7.44324525,134.35,134.34,6.10999287]
[1744962481712,18.60577606,134.37,134.34,5.90999287]
[1744962483910,18.60577606,134.37,134.35,6.10999287]
[1744962488421,18.60577606,134.37,134.36,6.10999287]
[1744962488915,18.60577606,134.37,134.35,6.10999287]
[1744962489115,7.44047619,134.4,134.37,1.6361]
[1744962489318,7.44047619,134.4,134.39,6.10999287]
[1744962490329,0.03,134.41,134.39,6.10999287]
[1744962490617,0.03,134.41,134.4,45.32996435]
[1744962495430,0.03,134.41,134.4,63.97961321]
[1744962495616,0.03,134.41,134.4,89.97961321]
[1744962495815,0.03,134.42,134.41,38.64964886]
[1744962496125,0.03,134.47,134.43,46.0]
[1744962496432,0.03,134.47,134.46,6.10999287]
[1744962499623,0.03,134.47,134.46,75.19961321]
[1744962499812,0.03,134.49,134.48,20.0]
[1744962500007,0.03,134.49,134.48,26.10999287]
[1744962500707,0.03,134.49,134.48,27.72499287]
[1744962500923,0.03,134.49,134.48,72.37464173]
[1744962501125,0.03,134.5,134.49,18.64964886]
[1744962501429,0.03,134.5,134.49,6.10999287]
[1744962502208,0.03,134.5,134.49,24.75964173]
[1744962504021,0.03,134.5,134.49,6.10999287]
[1744962505934,6.13999287,134.5,134.45,40.86999287]
[1744962506226,26.02617489,134.48,134.45,14.76]
[1744962506607,26.02617489,134.48,134.45,20.86999287]
[1744962507027,26.02617489,134.48,134.46,6.10999287]
[1744962507409,26.02617489,134.48,134.47,6.10999287]
[1744962507809,7.43604997,134.48,134.47,6.10999287]
[1744962508241,18.61752258,134.5,134.47,6.10999287]
[1744962508413,18.61752258,134.5,134.48,6.10999287]
[1744962508915,18.61752258,134.5,134.47,6.10999287]
[1744962509311,18.61752258,134.5,134.46,6.10999287]
[1744962509517,24.72751545,134.5,134.45,20.86999287]
[1744962509922,18.61752258,134.5,134.46,6.10999287]
[1744962510124,24.72751545,134.5,134.46,6.10999287]
[1744962510310,69.33718086,134.5,134.45,20.86999287]
[1744962511123,72.75425014,134.5,134.45,24.28706215]
[1744962512333,9.52706215,134.49,134.45,14.76]
[1744962512525,26.02617489,134.48,134.45,14.76]
[1744962512720,35.55323704,134.48,134.44,9.52706215]
[1744962512926,35.55323704,134.48,134.44,14.76]
[1744962513917,35.55323704,134.48,134.44,24.28706215]
[1744962514322,9.52706215,134.47,134.44,14.76]
[1744962514635,7.43715603,134.46,134.44,14.76]
[1744962514926,26.0300461,134.46,134.42,24.28706215]
[1744962515126,26.0300461,134.46,134.41,14.76]
[1744962515327,9.52706215,134.44,134.41,14.76]
[1744962516633,7.43881574,134.43,134.41,14.76]
[1744962517433,7.43881574,134.43,134.41,24.28706215]
[1744962518525,7.43881574,134.43,134.42,9.52706215]
[1744962518938,18.59625432,134.44,134.42,9.52706215]
[1744962519439,18.59625432,134.44,134.41,24.28706215]
[1744962520143,28.12331647,134.44,134.39,24.28706215]
[1744962520929,35.56157889,134.44,134.4,9.52706215]
[1744962522325,72.75289099,134.44,134.39,24.28706215]
[1744962522642,72.75289099,134.44,134.4,9.52706215]
[1744962522824,63.22582884,134.44,134.4,9.52706215]
[1744962523659,26.03451674,134.44,134.41,9.52706215]
[1744962524245,26.03451674,134.44,134.4,9.52706215]
[1744962524455,72.75289099,134.44,134.39,24.28706215]
[1744962524939,72.75289099,134.44,134.4,9.52706215]
[1744962525152,37.1913121,134.44,134.4,9.52706215]
[1744962527244,63.22523057,134.44,134.4,9.52706215]
[1744962527739,63.22523057,134.44,134.39,14.76]
[1744962528055,72.75229272,134.44,134.4,9.52706215]
[1744962528255,63.22523057,134.44,134.4,9.52706215]
[1744962529158,63.08222448,134.44,134.4,9.52706215]
[1744962529664,37.04830601,134.44,134.4,9.52706215]
[1744962530453,46.57536816,134.44,134.4,9.52706215]
[1744962530750,72.60928663,134.44,134.4,9.52706215]
[1744962531160,63.08222448,134.44,134.4,9.52706215]
[1744962531526,63.08222448,134.44,134.41,9.52706215]
[1744962532854,55.64396206,134.44,134.41,9.52706215]
[1744962533358,18.59565605,134.44,134.42,6.10071116]
[1744962534661,18.59565605,134.44,134.41,6.10071116]
[1744962538233,18.59565605,134.44,134.42,6.10071116]
[1744962540361,18.59565605,134.44,134.41,6.10071116]
[1744962546576,18.59565605,134.44,134.4,34.76]
[1744962546876,6.10071116,134.42,134.37,66.86071116]
[1744962547869,26.03972918,134.41,134.37,66.86071116]
[1744962548573,26.03972918,134.41,134.38,6.10071116]
[1744962549561,63.2393423,134.41,134.38,6.10071116]
[1744962550076,55.79941968,134.41,134.38,6.10071116]
[1744962551748,55.79941968,134.41,134.37,60.76]
[1744962551979,55.79941968,134.41,134.37,66.86071116]
[1744962553680,63.2393423,134.41,134.37,66.86071116]
[1744962553975,63.2393423,134.41,134.38,6.10071116]
[1744962554976,55.79941968,134.41,134.38,6.10071116]
[1744962562482,18.59980656,134.41,134.39,6.10071116]
[1744962562661,18.59980656,134.41,134.4,6.10071116]
[1744962563887,63.50955371,134.44,134.4,6.10071116]
[1744962564673,26.03391847,134.44,134.42,6.10071116]
[1744962566282,69.31653741,134.46,134.42,6.10071116]
[1744962566487,69.31653741,134.46,134.41,6.10071116]
[1744962569082,69.31653741,134.46,134.42,6.10071116]
[1744962571691,69.31653741,134.46,134.44,6.10071116]
[1744962571692,63.21582625,134.46,134.44,6.10071116]
[1744962571871,63.21582625,134.46,134.42,14.76]
[1744962571872,26.0300461,134.46,134.45,6.10071116]
[1744962572974,63.227026,134.5,134.45,6.10071116]
[1744962573175,63.227026,134.5,134.47,6.10071116]
[1744962573570,6.10071116,134.48,134.42,14.76]
[1744962573791,6.10071116,134.47,134.42,20.86071116]
[1744962573981,6.10071116,134.48,134.43,6.10071116]
[1744962575790,26.02811034,134.47,134.43,6.10071116]
[1744962576682,26.02811034,134.47,134.46,6.10071116]
[1744962577898,100.40174718,134.5,134.46,6.10071116]
[1744962578880,106.50245834,134.5,134.46,6.10071116]
[1744962579200,100.40174718,134.5,134.46,6.10071116]
[1744962579695,26.05230482,134.5,134.49,6.10071116]
[1744962579898,0.03,134.5,134.49,6.10071116]
[1744962581485,0.03,134.5,134.49,52.37986002]
[1744962581687,7.43291808,134.54,134.51,20.0]
[1744962581885,0.03,134.55,134.53,6.10071116]
[1744962582202,0.03,134.55,134.54,6.10071116]
[1744962586299,0.03,134.55,134.54,30.5035558]
[1744962586674,0.03,134.55,134.54,6.10071116]
[1744962587982,0.03,134.55,134.53,6.10071116]
[1744962588204,0.03,134.55,134.52,20.86071116]
[1744962588508,6.13071116,134.55,134.52,14.76]
[1744962588699,6.10071116,134.54,134.52,14.76]
[1744962588904,6.13071116,134.55,134.52,14.76]
[1744962589206,7.43273375,134.54,134.5,6.10071116]
[1744962589388,13.53344491,134.54,134.49,20.86071116]
[1744962590410,63.17823693,134.54,134.5,6.10071116]
[1744962590580,69.27894809,134.54,134.5,6.10071116]
[1744962590780,6.10071116,134.51,134.47,14.76]
[1744962590985,6.10071116,134.51,134.45,251.76]
[1744962590986,6.10071116,134.49,134.45,246.52]
[1744962591193,9.52920377,134.48,134.45,14.76]
[1744962591788,18.933972,134.52,134.42,27.5193]
[1744962591996,9.52920377,134.45,134.4,9.52920377]
[1744962592310,9.52920377,134.44,134.39,29.52920377]
[1744962592521,26.03585509,134.43,134.39,20.0]
[1744962592811,26.03585509,134.43,134.41,9.52920377]
[1744962594405,18.59703935,134.43,134.41,9.52920377]
[1744962594585,18.59703935,134.43,134.4,9.52920377]
[1744962595103,7.43826242,134.44,134.41,9.52920377]
[1744962595314,7.43826242,134.44,134.42,9.52920377]
[1744962595494,26.03391847,134.44,134.41,44.28920377]
[1744962596307,26.03391847,134.44,134.42,9.52920377]
[1744962596503,63.21774876,134.46,134.42,9.52920377]
[1744962597209,72.74695253,134.46,134.42,9.52920377]
[1744962597411,72.74695253,134.46,134.41,44.28920377]
[1744962599488,9.52920377,134.45,134.41,24.28920377]
[1744962599687,72.74695253,134.46,134.41,24.28920377]
[1744962601214,72.74695253,134.46,134.41,24.28920377]
[1744962602217,72.74695253,134.46,134.42,9.52920377]
[1744962602516,72.74695253,134.46,134.41,24.28920377]
[1744962603111,9.52920377,134.45,134.41,14.76]
[1744962603707,64.79084876,134.46,134.41,14.76]
[1744962603900,9.52920377,134.45,134.41,14.76]
[1744962606726,26.03391847,134.44,134.41,14.76]
[1744962607219,26.03391847,134.44,134.42,9.52920377]
[1744962607519,26.03391847,134.44,134.41,24.28920377]
[1744962607824,7.43826242,134.44,134.43,55.52920377]
[1744962607997,7.43549706,134.49,134.45,20.0]
[1744962608199,7.43549706,134.49,134.48,9.52920377]
[1744962608819,26.01843591,134.52,134.48,9.52920377]
[1744962613830,35.54763968,134.52,134.48,9.52920377]
[1744962614429,9.52920377,134.51,134.47,9.52920377]
[1744962614607,9.52920377,134.51,134.46,24.28920377]
[1744962615428,26.02230482,134.5,134.47,9.52920377]
[1744962616830,26.02230482,134.5,134.46,24.28920377]
[1744962618430,26.02230482,134.5,134.46,14.76]
[1744962618627,26.02230482,134.5,134.47,9.52920377]
[1744962619429,7.43328625,134.53,134.5,20.0]
[1744962619611,7.43328625,134.53,134.52,9.52920377]
[1744962620625,0.03,134.55,134.52,9.52920377]
[1744962621330,0.03,134.55,134.53,9.52920377]
[1744962624218,0.03,134.55,134.52,9.52920377]
[1744962624535,0.03,134.55,134.54,9.52920377]
[1744962624916,0.03,134.55,134.53,9.52920377]
[1744962625634,0.03,134.55,134.54,9.52920377]
[1744962628740,0.03,134.55,134.54,29.52920377]
[1744962634349,0.03,134.55,134.54,65.05840754]
[1744962634646,0.03,134.55,134.54,55.52920377]
[1744962635152,0.03,134.55,134.54,52.08656388]
[1744962636850,0.03,134.55,134.54,76.4328194]
[1744962638949,0.03,134.55,134.54,95.3667914]
[1744962639545,0.03,134.55,134.54,69.3667914]
[1744962642359,0.03,134.55,134.54,69.08246826]
[1744962642653,0.03,134.55,134.54,69.3667914]
[1744962644458,0.03,134.55,134.54,52.08656388]
[1744962646135,0.03,134.55,134.54,66.82656388]
[1744962647157,0.03,134.55,134.54,40.82656388]
[1744962647661,0.03,134.55,134.54,65.1728194]
[1744962647867,0.03,134.55,134.54,40.82656388]
[1744962649873,0.03,134.55,134.52,20.0]
[1744962650035,0.03,134.55,134.51,20.82656388]
[1744962650241,6.11656388,134.55,134.51,14.74]
[1744962650454,0.03,134.55,134.51,20.82656388]
[1744962651948,26.0426347,134.55,134.51,20.82656388]
[1744962652747,26.0426347,134.55,134.52,6.08656388]
[1744962657363,26.0426347,134.55,134.53,6.08656388]
[1744962657870,26.0426347,134.55,134.52,26.08656388]
[1744962659172,18.61045336,134.55,134.52,26.08656388]
[1744962659361,24.69701724,134.55,134.51,14.74]
[1744962659559,6.08656388,134.54,134.51,14.74]
[1744962660254,6.08656388,134.52,134.47,6.08656388]
[1744962660441,6.08656388,134.5,134.47,14.74]
[1744962661155,13.52206094,134.49,134.45,231.6]
[1744962661358,6.08656388,134.46,134.44,14.803]
[1744962661872,7.66696388,134.48,134.44,14.803]
[1744962662675,26.02423971,134.49,134.45,6.08656388]
[1744962663355,26.02423971,134.49,134.46,6.08656388]
[1744962664469,18.58874265,134.49,134.46,6.08656388]
[1744962665256,18.58874265,134.49,134.46,9.02560061]
[1744962667375,7.43494423,134.5,134.47,9.52560061]
[1744962668280,26.02230482,134.5,134.46,29.52560061]
[1744962669674,26.02230482,134.5,134.47,9.52560061]
[1744962673268,9.52560061,134.49,134.44,44.32860061]
[1744962673567,9.52560061,134.47,134.44,14.803]
[1744962673767,9.52560061,134.46,134.44,14.803]
[1744962674486,9.52560061,134.47,134.44,14.803]
[1744962674784,15.81110061,134.48,134.44,14.803]
[1744962675490,26.02811034,134.47,134.44,24.32860061]
[1744962677190,26.02811034,134.47,134.44,14.803]
[1744962678892,26.02811034,134.47,134.44,24.32860061]
[1744962680492,26.02811034,134.47,134.46,9.52560061]
[1744962680885,26.02811034,134.47,134.45,9.52560061]
[1744962681694,72.72732563,134.49,134.44,14.803]
[1744962681878,9.52560061,134.47,134.44,14.803]
[1744962682391,63.20172502,134.49,134.44,24.32860061]
[1744962682577,9.52560061,134.48,134.44,24.32860061]
[1744962682765,9.52560061,134.48,134.44,14.803]
[1744962684195,26.02811034,134.47,134.44,14.803]
[1744962685069,35.55371095,134.47,134.44,14.803]
[1744962685270,9.52560061,134.46,134.44,14.803]
[1744962686196,26.03391847,134.44,134.41,14.74]
[1744962686383,9.52560061,134.43,134.41,14.74]
[1744962686585,35.55951908,134.44,134.41,14.74]
[1744962687200,32.13595472,134.44,134.41,14.74]
[1744962688071,26.03391847,134.44,134.41,20.84203625]
[1744962688377,18.59565605,134.44,134.42,6.10203625]
[1744962688572,18.59565605,134.44,134.41,20.84203625]
[1744962689677,18.59565605,134.44,134.41,14.74]
[1744962690996,26.03391847,134.44,134.41,14.74]
[1744962692275,26.03391847,134.44,134.41,20.84203625]
[1744962695204,26.03391847,134.44,134.41,14.74]
[1744962695798,26.03391847,134.44,134.41,20.84203625]
[1744962696004,7.43826242,134.44,134.43,6.10203625]
[1744962696371,1.6374,134.5,134.43,6.10203625]
[1744962696585,18.59030585,134.48,134.47,6.10203625]
[1744962696791,7.43549706,134.49,134.47,6.10203625]
[1744962697501,63.19039041,134.52,134.48,6.10203625]
[1744962700395,69.29242666,134.52,134.48,6.10203625]
[1744962701199,69.29242666,134.52,134.42,0.74390875]
[1744962701200,6.10203625,134.49,134.42,20.0]
[1744962701377,6.10203625,134.48,134.43,14.74]
[1744962701576,6.10203625,134.48,134.44,6.10203625]
[1744962703183,18.59150739,134.47,134.44,9.52888582]
[1744962705004,18.59150739,134.47,134.43,24.26888582]
[1744962705303,26.02811034,134.47,134.43,24.26888582]
[1744962705500,26.02811034,134.47,134.44,9.52888582]
[1744962705681,26.02811034,134.47,134.43,14.74]
[1744962705883,26.02811034,134.47,134.44,9.52888582]
[1744962708312,26.02811034,134.47,134.43,14.74]
[1744962708497,26.02811034,134.47,134.43,24.26888582]
[1744962708812,26.02811034,134.47,134.43,14.74]
[1744962709010,26.02811034,134.47,134.43,24.26888582]
[1744962710409,16.966595,134.45,134.43,14.74]
[1744962712610,7.43770918,134.45,134.44,9.52888582]
[1744962713189,7.43743372,134.46,134.44,9.52888582]
[1744962713389,7.43743372,134.46,134.45,9.52888582]
[1744962714415,18.58905784,134.49,134.45,9.52888582]
[1744962715009,18.58905784,134.49,134.46,9.52888582]
[1744962717304,18.58905784,134.49,134.47,9.52888582]
[1744962718014,18.58905784,134.49,134.46,9.52888582]
[1744962719810,18.58905784,134.49,134.47,9.52888582]
[1744962721218,18.58905784,134.49,134.46,9.52888582]
[1744962723016,9.52888582,134.48,134.43,24.26888582]
[1744962723413,9.52888582,134.46,134.43,14.74]
[1744962724004,7.43770918,134.45,134.43,14.74]
[1744962724527,9.52888582,134.44,134.4,246.543]
[1744962724700,9.52888582,134.42,134.4,246.543]
[1744962724899,9.52888582,134.43,134.4,246.543]
[1744962725197,6.10335945,134.43,134.4,14.803]
[1744962725597,7.43936914,134.42,134.4,14.803]
[1744962727321,9.5360976,134.43,134.4,14.803]
[1744962727525,9.5360976,134.44,134.4,14.803]
[1744962729624,26.03585509,134.43,134.4,14.803]
[1744962730329,26.03585509,134.43,134.4,24.3390976]
[1744962730523,26.03585509,134.43,134.41,9.5360976]
[1744962730729,7.43881574,134.43,134.42,9.5360976]
[1744962731829,18.59448528,134.45,134.42,9.5360976]
[1744962736623,9.5360976,134.43,134.4,14.803]
[1744962737330,9.5360976,134.44,134.4,14.803]
[1744962737708,26.03585509,134.43,134.4,14.803]
[1744962738007,26.03585509,134.43,134.4,24.3390976]
[1744962739129,46.72464352,134.45,134.4,24.3390976]
[1744962739930,72.75288623,134.46,134.41,9.5360976]
[1744962740132,63.21678863,134.46,134.42,9.5360976]
[1744962740312,72.75288623,134.46,134.42,9.5360976]
[1744962740818,72.75288623,134.46,134.41,9.5360976]
[1744962741236,26.03391847,134.44,134.4,44.3390976]
[1744962741415,35.57001607,134.44,134.4,24.3390976]
[1744962741613,9.5360976,134.43,134.4,14.803]
[1744962741913,35.57001607,134.44,134.4,14.803]
[1744962742113,35.57001607,134.44,134.4,24.3390976]
[1744962742430,55.83639139,134.46,134.41,9.5360976]
[1744962742431,72.75288623,134.46,134.41,9.5360976]
[1744962744037,9.5360976,134.45,134.4,34.803]
[1744962744229,9.5360976,134.43,134.4,14.803]
[1744962745335,7.43936914,134.42,134.4,14.803]
[1744962745837,7.43936914,134.42,134.4,24.3390976]
[1744962746231,7.43936914,134.42,134.41,9.5360976]
[1744962746628,18.59565605,134.44,134.41,9.5360976]
[1744962746826,18.59565605,134.44,134.42,9.5360976]
[1744962747341,7.43770918,134.45,134.43,9.5360976]
[1744962747635,7.43770918,134.45,134.44,9.5360976]
[1744962748936,26.02617489,134.48,134.44,9.5360976]
[1744962749138,26.02617489,134.48,134.45,24.2760976]
[1744962749342,26.02617489,134.48,134.45,14.74]
[1744962749515,26.02617489,134.48,134.45,24.2760976]
[1744962750040,26.02617489,134.48,134.45,14.74]
[1744962752039,35.56227249,134.48,134.45,14.74]
[1744962752936,18.59012492,134.48,134.45,14.74]
[1744962753141,18.59012492,134.48,134.45,24.2760976]
[1744962756442,26.05230482,134.5,134.46,9.5360976]
[1744962761137,18.61736059,134.5,134.46,6.09593893]
[1744962762851,26.05230482,134.5,134.46,6.09593893]
[1744962766151,18.61736059,134.5,134.46,6.09593893]
[1744962766449,18.61736059,134.5,134.47,6.09593893]
[1744962767336,26.05230482,134.5,134.48,6.09593893]
[1744962768441,18.61736059,134.5,134.48,6.09593893]
[1744962769761,0.03,134.5,134.48,6.09593893]
[1744962773239,6.12593893,134.5,134.46,26.0]
[1744962773553,0.03,134.5,134.47,6.09593893]
[1744962773755,0.03,134.5,134.48,6.09593893]
[1744962774562,0.03,134.5,134.47,6.09593893]
[1744962776459,0.03,134.5,134.47,20.83593893]
[1744962776762,26.05230482,134.5,134.47,20.83593893]
[1744962777757,18.61736059,134.5,134.47,20.83593893]
[1744962778541,18.61736059,134.5,134.48,6.09593893]
[1744962779052,18.61736059,134.5,134.47,20.83593893]
[1744962780262,18.61736059,134.5,134.47,14.74]
[1744962780445,24.71329952,134.5,134.47,14.74]
[1744962780852,6.09593893,134.48,134.44,14.74]
[1744962781057,6.09593893,134.46,134.44,14.74]
[1744962781262,6.09593893,134.46,134.42,14.74]
[1744962781944,63.20642474,134.48,134.45,6.09593893]
[1744962782346,63.20642474,134.48,134.44,6.09593893]
[1744962783368,26.02617489,134.48,134.45,6.09593893]
[1744962784574,26.02617489,134.48,134.44,6.09593893]
[1744962784945,26.02617489,134.48,134.45,14.74]
[1744962789166,18.59012492,134.48,134.47,6.09593893]
[1744962789376,7.43549706,134.49,134.47,6.09593893]
[1744962789667,26.02423971,134.49,134.46,26.09593893]
[1744962790676,26.02423971,134.49,134.46,20.0]
[1744962790965,0.03,134.5,134.46,26.09593893]
[1744962791764,6.12593893,134.5,134.46,26.09593893]
[1744962792973,26.02423971,134.49,134.45,14.74]
[1744962793164,6.09593893,134.48,134.45,14.74]
[1744962793369,6.09593893,134.48,134.43,52.09593893]
[1744962793690,6.09593893,134.48,134.44,14.74]
[1744962793876,6.09593893,134.48,134.44,20.83593893]
[1744962794078,69.29766395,134.49,134.45,6.09593893]
[1744962794571,63.20172502,134.49,134.45,6.09593893]
[1744962794874,26.02423971,134.49,134.45,6.09593893]
[1744962795259,32.12017864,134.49,134.45,6.09593893]
[1744962796263,32.12017864,134.49,134.44,20.83593893]
[1744962797175,32.12017864,134.49,134.45,6.09593893]
[1744962797378,32.12017864,134.49,134.44,20.83593893]
[1744962799067,32.12017864,134.49,134.45,6.09593893]
[1744962799576,26.02423971,134.49,134.45,6.09593893]
[1744962800375,32.12017864,134.49,134.45,6.09593893]
[1744962800577,6.09593893,134.47,134.44,14.74]
[1744962800758,6.09593893,134.46,134.42,14.74]
[1744962801494,6.09593893,134.46,134.42,20.83593893]
[1744962801778,18.64964886,134.44,134.4,14.803]
[1744962802152,69.31646699,134.45,134.41,6.09593893]
[1744962802365,69.31646699,134.45,134.4,20.89893893]
[1744962802677,6.09593893,134.44,134.4,14.803]
[1744962802877,26.03585509,134.43,134.4,14.803]
[1744962803071,26.03585509,134.43,134.4,20.89893893]
[1744962804575,18.59703935,134.43,134.4,20.89893893]
[1744962804761,18.59703935,134.43,134.41,6.09593893]
[1744962804965,7.43826242,134.44,134.41,6.09593893]
[1744962806482,26.03391847,134.44,134.41,6.09593893]
[1744962806979,32.12598503,134.46,134.41,6.09593893]
[1744962807877,20.489472,134.47,134.41,6.09593893]
[1744962807878,6.09593893,134.45,134.41,6.09593893]
[1744962808068,26.03391847,134.44,134.41,6.09593893]
[1744962810077,32.12598503,134.46,134.42,6.09593893]
[1744962810280,26.0300461,134.46,134.42,6.09593893]
[1744962811167,32.12598503,134.46,134.42,6.09593893]
[1744962811970,26.0300461,134.46,134.42,6.09593893]
[1744962812171,26.0300461,134.46,134.44,6.09593893]
[1744962812172,18.59289007,134.46,134.44,6.09593893]
[1744962812476,18.59289007,134.46,134.43,6.09593893]
[1744962815379,18.59289007,134.46,134.41,20.0]
[1744962815380,18.59289007,134.46,134.44,6.09593893]
[1744962815583,18.59289007,134.46,134.44,20.83593893]
[1744962818087,43.27342424,134.49,134.44,20.83593893]
[1744962818387,37.17748531,134.49,134.45,6.09593893]
[1744962818887,26.05230482,134.5,134.46,6.09593893]
[1744962819191,26.05230482,134.5,134.47,6.09593893]
[1744962819385,26.05230482,134.5,134.46,6.09593893]
[1744962820985,32.14824375,134.5,134.46,6.09593893]
[1744962823802,26.05230482,134.5,134.47,6.09593893]
[1744962824672,26.05230482,134.5,134.46,6.09593893]
[1744962826789,18.61736059,134.5,134.47,6.09593893]
[1744962827999,0.03,134.5,134.49,6.09593893]
[1744962828578,0.03,134.5,134.49,40.83593893]
[1744962829083,0.03,134.5,134.49,66.83593893]
[1744962829896,0.03,134.5,134.49,72.68587731]
[1744962830085,0.03,134.5,134.49,66.83593893]
[1744962832402,0.03,134.5,134.49,60.74]
[1744962832584,0.03,134.5,134.49,46.83593893]
[1744962832784,0.03,134.5,134.49,14.74]
[1744962832981,0.03,134.5,134.49,14.72]
[1744962833186,0.03,134.5,134.49,20.81593893]
[1744962833799,0.03,134.5,134.49,14.72]
[1744962834003,0.03,134.5,134.49,20.81593893]
[1744962834375,0.03,134.5,134.49,14.72]
[1744962836073,6.12593893,134.5,134.49,14.72]
[1744962836778,6.12593893,134.5,134.46,46.81593893]
[1744962837502,26.02423971,134.49,134.46,46.81593893]
[1744962838603,18.58874265,134.49,134.46,46.81593893]
[1744962839182,18.58874265,134.49,134.46,20.81593893]
[1744962839903,26.02423971,134.49,134.46,14.72]
[1744962840277,26.02423971,134.49,134.45,14.72]
[1744962840278,6.09593893,134.47,134.45,14.72]
[1744962840503,25.02991093,134.48,134.45,14.72]
[1744962840688,18.933972,134.48,134.45,14.72]
[1744962841292,7.43660295,134.47,134.45,20.81593893]
[1744962841489,7.43660295,134.47,134.46,6.09593893]
[1744962841905,7.43660295,134.47,134.45,20.81593893]
[1744962842202,63.20172502,134.49,134.45,20.81593893]
[1744962843211,26.02423971,134.49,134.46,6.09593893]
[1744962843505,26.02423971,134.49,134.48,6.09593893]
[1744962843891,26.02423971,134.49,134.47,6.09593893]
[1744962845107,0.03,134.5,134.48,6.09593893]
[1744962846795,0.03,134.5,134.49,6.09593893]
[1744962852921,0.03,134.5,134.48,6.09593893]
[1744962853417,0.03,134.5,134.49,14.72]
[1744962855819,6.12593893,134.5,134.48,14.72]
[1744962855999,6.12593893,134.5,134.47,14.72]
[1744962856415,0.03,134.5,134.47,14.72]
[1744962856614,0.03,134.5,134.47,20.81593893]
[1744962857221,26.05230482,134.5,134.48,6.09593893]
[1744962858135,0.03,134.5,134.48,6.09593893]
[1744962858513,0.03,134.5,134.49,6.09593893]
[1744962859921,0.03,134.5,134.49,20.81593893]
[1744962861126,0.03,134.5,134.49,14.72]
[1744962866121,0.03,134.5,134.47,14.72]
[1744962867430,26.05230482,134.5,134.47,20.81593893]
[1744962868603,18.61736059,134.5,134.48,6.09593893]
[1744962870432,0.03,134.5,134.48,6.09593893]
[1744962875237,0.03,134.5,134.49,14.72]
[1744962875734,0.03,134.5,134.49,20.81593893]
[1744962876248,0.03,134.5,134.49,14.72]
[1744962877827,0.03,134.5,134.49,20.81593893]
[1744962879029,0.03,134.5,134.49,40.81593893]
[1744962893350,0.03,134.5,134.48,20.81593893]
[1744962893552,0.03,134.5,134.49,6.09593893]
[1744962904949,0.03,134.5,134.49,26.09593893]
[1744962908556,0.03,134.5,134.49,52.09593893]
[1744962909156,0.03,134.52,134.51,26.0]
[1744962909459,0.03,134.52,134.51,32.09593893]
[1744962909656,0.03,134.52,134.51,52.09593893]
[1744962909863,0.03,134.54,134.53,46.0]
[1744962910164,0.03,134.56,134.55,46.0]
[1744962910331,0.03,134.57,134.55,52.09593893]
[1744962910538,0.03,134.57,134.56,6.09593893]
[1744962911227,0.03,134.58,134.57,20.0]
[1744962911432,0.03,134.58,134.57,26.09593893]
[1744962914055,0.03,134.58,134.57,52.09593893]
[1744962914358,0.03,134.6,134.59,46.0]
[1744962914544,0.03,134.6,134.59,66.81593893]
[1744962918360,0.03,134.62,134.61,20.0]
[1744962918556,0.03,134.62,134.61,50.47969465]